fUST/lending_fUST_20260223
["ID","MTS","AMOUNT","RATE_DAILY","PERIOD"]
[406359870,1771794646262,-151.0,0.00044,120]
[406359871,1771794646271,-151.0,0.00044,120]
[406359872,1771794646280,-151.0,0.00044,120]
[406359873,1771794646290,-500.0,0.0004406,30]
[406359874,1771794646300,-3302.78217066,0.0004449,3]
[406359875,1771794646309,-2903.70558826,0.0004465,2]
[406359876,1771794646318,-200.011921,0.0004479,120]
[406359877,1771794646327,-200.011921,0.0004479,120]
[406359878,1771794646337,-200.011921,0.0004479,120]
[406359879,1771794646347,-200.011921,0.0004479,120]
[406359880,1771794646356,-1080.74185292,0.000448,49]
[406359881,1771794646365,-1080.7418529,0.000448,49]
[406359882,1771794646374,-1080.7418529,0.000448,49]
[406359883,1771794646383,-1080.7418529,0.000448,49]
[406359884,1771794646393,-151.0,0.000448,120]
[406359885,1771794646402,-151.0,0.000448,120]
[406359886,1771794646411,-151.0,0.00045,120]
[406359887,1771794646420,-151.0,0.00045,120]
[406359888,1771794646430,-151.0,0.00045,120]
[406359889,1771794646439,-857.68,0.00045423,120]
[406359890,1771794646448,-421.39,0.00045423,120]
[406359891,1771794646458,-3302.78217066,0.0004549,3]
[406359892,1771794646467,-9508.86,0.000455,2]
[406359893,1771794646477,-151.0,0.000455,120]
[406359894,1771794646487,-151.0,0.000455,120]
[406359895,1771794646498,-200.011921,0.000455,120]
[406359896,1771794646508,-200.011921,0.000455,120]
[406359897,1771794646518,-200.011921,0.000455,120]
[406359898,1771794646527,-200.01193,0.000455,120]
[406359899,1771794646538,-240.93,0.00045717,60]
[406359900,1771794646547,-634.08,0.00046172,10]
[406359901,1771794646556,-720.0,0.00046562,120]
[406359902,1771794646566,-350.0,0.00046573,30]
[406359903,1771794646575,-350.0,0.00046573,30]
[406359904,1771794646585,-350.0,0.00046573,30]
[406359905,1771794646594,-350.0,0.00046573,30]
[406359906,1771794646603,-165.0,0.00046573,30]
[406359907,1771794646613,-163.0,0.00046573,30]
[406359908,1771794646622,-460.74754315,0.00046573,30]
[406359909,1771794646632,-2073.26107062,0.00046575,120]
[406359939,1771795633135,-252.89706103,0.00022899,4]
[406359940,1771795633155,-1788.1766,0.00023137,120]
[406359941,1771795633181,-150.0,0.00023372,2]
[406359942,1771795633201,-14.0992543,0.00025372,2]
[406359943,1771795643198,-162.9007457,0.00025372,2]
[406359944,1771795643219,-500.0,0.00032162,7]
[406359945,1771795643239,-110.81454476,0.0003247,2]
[406359946,1771795746141,-2149.48902345,0.000176,2]
[406359947,1771795746161,-300.0,0.00017998,2]
[406359948,1771795746182,-500.0,0.00017999,2]
[406359949,1771795746204,-500.0,0.00017999,2]
[406359950,1771795746225,-500.0,0.00017999,2]
[406359951,1771795746247,-500.0,0.00017999,2]
[406359952,1771795746268,-500.0,0.00017999,2]
[406359953,1771795746291,-500.0,0.00017999,2]
[406359954,1771795746312,-492.56579867,0.00017999,2]
[406359955,1771795746335,-500.0,0.00017999,2]
[406359956,1771795746355,-500.0,0.00017999,2]
[406359957,1771795746376,-500.0,0.00017999,2]
[406359958,1771795746399,-500.0,0.00017999,2]
[406359959,1771795746421,-500.0,0.00017999,2]
[406359960,1771795746443,-500.0,0.00017999,2]
[406359961,1771795746464,-500.0,0.00017999,2]
[406359962,1771795746486,-500.0,0.00017999,2]
[406359963,1771795746507,-500.0,0.00017999,2]
[406359964,1771795746529,-500.0,0.00017999,2]
[406359965,1771795746550,-206.63414171,0.00017999,2]
[406359966,1771795746572,-500.0,0.00017999,2]
[406359967,1771795746592,-500.0,0.00017999,2]
[406359968,1771795746614,-296.31067168,0.00017999,2]
[406359969,1771795755106,-203.68932832,0.00017999,2]
[406359970,1771795755128,-500.0,0.00017999,2]
[406359971,1771795755148,-500.0,0.00017999,2]
[406359972,1771795755168,-500.0,0.00017999,2]
[406359973,1771795755188,-206.16061341,0.00017999,2]
[406359974,1771795755208,-500.0,0.00017999,2]
[406359975,1771795755228,-500.0,0.00017999,2]
[406359976,1771795755248,-500.0,0.00017999,2]
[406359977,1771795755268,-229.0728013,0.00017999,2]
[406359978,1771795755288,-500.0,0.00017999,2]
[406359979,1771795755308,-618.58304388,0.00017999,2]
[406359980,1771795755332,-500.0,0.00017999,2]
[406359981,1771795755352,-500.0,0.00017999,2]
[406359982,1771795755372,-65467.06178655,0.00018,2]
[406359983,1771795755394,-500.0,0.00024658,2]
[406359984,1771795755413,-500.0,0.00024658,2]
[406359985,1771795755433,-500.0,0.00024658,2]
[406359986,1771795755454,-450.0,0.00024658,2]
[406359987,1771795755474,-500.0,0.00024658,2]
[406359988,1771795755494,-500.0,0.00024658,2]
[406359989,1771795755514,-429.99787654,0.00024658,2]
[406359990,1771795756074,-70.00212346,0.00024658,2]
[406359991,1771795756101,-500.0,0.00024658,2]
[406359992,1771795756123,-500.0,0.00024658,2]
[406359993,1771795756145,-500.0,0.00024658,2]
[406359994,1771795756166,-22521.56440828,0.0003,30]
[406359995,1771795756189,-280.99112001,0.00030143,2]
[406359996,1771795756210,-5111.67968864,0.00030144,120]
[406360013,1771795831758,-658.06644971,0.00030143,2]
[406360015,1771795831770,-227.93355029,0.00030143,2]
[406360017,1771795831779,-14178.6014904,0.00030144,120]
[406360022,1771795831816,-5048.89784844,0.00030144,120]
[406360062,1771795837997,-16364.19324349,0.00030144,120]
[406360064,1771795838008,-3476.87677286,0.00030144,120]
[406360096,1771795840352,-21397.60330784,0.00030144,120]
[406360097,1771795840363,-764.90491604,0.0003247,2]
[406360098,1771795840375,-1010.57665586,0.00033773,4]
[406360099,1771795840385,-409.58,0.00038,60]
[406360100,1771795840395,-8670.59100767,0.000385,45]
[406360110,1771795843372,-3829.40899233,0.000385,45]
[406360111,1771795843382,-2477.086628,0.00038986,3]
[406360112,1771795843392,-311.99434991,0.00039,45]
[406360128,1771795845933,-2756.356,0.00039,45]
[406360135,1771796756131,-150.0,0.00024658,2]
[406360136,1771796756151,-2013.12174707,0.0002468,2]
[406360137,1771796827105,-300.0,0.00024679,2]
[406360138,1771796827127,-150.0,0.00024679,2]
[406360139,1771796827147,-18673.22560073,0.0002468,2]
[406360140,1771796851080,-618.91874551,0.0002468,2]
[406360153,1771796960086,-300.0,0.00024902,2]
[406360154,1771796960106,-8780.69037648,0.00024903,2]
[406360155,1771796960127,-819.0,0.00025003,2]
[406360156,1771796960150,-3521.44752131,0.00025204,2]
[406360157,1771796960170,-250.0,0.00025205,2]
[406360158,1771796960189,-350.0,0.00025753,2]
[406360159,1771796960209,-1555.5344844,0.00026024,2]
[406360160,1771796960232,-500.0,0.00026064,2]
[406360161,1771796960254,-300.0,0.00026064,2]
[406360162,1771796960275,-4651.6411154,0.00026065,2]
[406360163,1771796960297,-261.28404826,0.00026301,2]
[406360174,1771797031907,-830.86509089,0.00026301,2]
[406360438,1771797038075,-15.13490911,0.00026301,2]
[406360440,1771797038084,-146.2718333,0.00026301,2]
[406360443,1771797038095,-177.0,0.00026679,2]
[406360445,1771797038104,-175.26,0.00027774,2]
[406360447,1771797038114,-226.47,0.00027788,2]
[406360448,1771797038123,-723.18992012,0.00028857,2]
[406360451,1771797038136,-1401.42654808,0.00028857,2]
[406360453,1771797038145,-1037.921427,0.00031138,2]
[406360455,1771797038155,-560.55213672,0.00032268,2]
[406360457,1771797038164,-500.0,0.00032268,2]
[406360459,1771797038174,-500.0,0.00032268,2]
[406360461,1771797038185,-500.0,0.00032268,2]
[406360463,1771797038195,-500.0,0.00032268,2]
[406360465,1771797038205,-500.0,0.00032268,2]
[406360467,1771797038215,-500.0,0.00032268,2]
[406360469,1771797038224,-500.0,0.00032268,2]
[406360471,1771797038234,-500.0,0.00032268,2]
[406360473,1771797038243,-500.0,0.00032268,2]
[406360475,1771797038253,-516.12947213,0.00032268,2]
[406360477,1771797038263,-500.0,0.00032268,2]
[406360479,1771797038273,-500.0,0.00032268,2]
[406360481,1771797038282,-500.0,0.00032268,2]
[406360483,1771797038291,-500.0,0.00032268,2]
[406360485,1771797038301,-500.0,0.00032268,2]
[406360487,1771797038310,-500.0,0.00032268,2]
[406360489,1771797038320,-500.0,0.00032268,2]
[406360491,1771797038329,-500.0,0.00032268,2]
[406360493,1771797038339,-500.0,0.00032268,2]
[406360495,1771797038348,-464.41568528,0.00032268,2]
[406360497,1771797038358,-239.24956467,0.00032268,2]
[406360499,1771797038367,-500.0,0.00032268,2]
[406360501,1771797038377,-500.0,0.00032268,2]
[406360503,1771797038386,-500.0,0.00032268,2]
[406360505,1771797038395,-241.50494132,0.00032268,2]
[406360507,1771797038405,-88.79849938,0.00032268,2]
[406360894,1771797043511,-284.10878075,0.00032268,2]
[406360895,1771797043521,-395.83290249,0.00032268,2]
[406360896,1771797043531,-218.26840947,0.00032268,2]
[406360897,1771797043543,-231.5915742,0.0003227,2]
[406360898,1771797043555,-487.67423403,0.00032467,2]
[406360899,1771797043566,-214.10744266,0.00032467,2]
[406360900,1771797043577,-749.83693286,0.00034354,4]
[406360901,1771797043586,-744.00654836,0.00035415,7]
[406360902,1771797043595,-359.34953202,0.00036521,2]
[406360903,1771797043605,-2690.0,0.00038,2]
[406360904,1771797043616,-409.58,0.00038,60]
[406360905,1771797043627,-6637.09233718,0.000385,45]
[406360906,1771797043639,-1298.1405329,0.000385,45]
[406360913,1771797046239,-4564.76712992,0.000385,45]
[406360914,1771797046248,-6478.75038028,0.00039,45]
[406360915,1771797046260,-1121.60303448,0.00039,45]
[406360916,1771797046470,-240.34686078,0.00039,45]
[406360920,1771798035167,-150.0,0.00025219,2]
[406360921,1771798035188,-824.0,0.00025232,2]
[406360922,1771798035210,-186.20494827,0.0002526,2]
[406360923,1771798035230,-186.20494827,0.0002526,2]
[406360924,1771798035250,-186.39115322,0.0002526,2]
[406360925,1771798035271,-181.5679265,0.0002612,2]
[406360926,1771798035293,-177.0,0.00027219,2]
[406360927,1771798035316,-500.0,0.00029091,7]
[406360928,1771798035339,-500.0,0.0003011,7]
[406360929,1771798035360,-181.5679265,0.00032305,2]
[406360930,1771798035380,-806.0,0.00032764,3]
[406360931,1771798035402,-831.19835803,0.00032764,2]
[406360932,1771798165136,-321.382741,0.00031199,7]
[406360933,1771798172089,-178.617259,0.00031199,7]
[406360972,1771798238317,-697.39636716,0.000322,4]
[406361195,1771798240679,-1859.40548171,0.000322,4]
[406361198,1771798240688,-741.7013209,0.00032765,2]
[406361200,1771798240698,-252.74457919,0.0003418,4]
[406361202,1771798240708,-316.18350414,0.0003418,4]
[406361204,1771798240719,-300.0,0.00034294,2]
[406361206,1771798240729,-447.83854557,0.00034295,2]
[406361208,1771798240739,-806.10938202,0.00034295,2]
[406361210,1771798240750,-1433.08334581,0.00034295,2]
[406361214,1771798240760,-184.39767793,0.00034295,2]
[406361216,1771798240773,-500.0,0.00034771,7]
[406361218,1771798240783,-214.06710932,0.00034815,2]
[406361220,1771798240794,-246.4912223,0.00034815,120]
[406361222,1771798240805,-320.64221561,0.00035399,4]
[406361224,1771798240815,-3875.2928599,0.00035553,2]
[406361227,1771798240826,-3505.5511544,0.00035642,2]
[406361229,1771798240837,-200.0,0.00037088,41]
[406361231,1771798240849,-273.82454148,0.00038,2]
[406361233,1771798240860,-492.88417466,0.00038,2]
[406361235,1771798240874,-875.3622942,0.00038,2]
[406361238,1771798240885,-317.74776383,0.00038,2]
[406361240,1771798240898,-363.14030152,0.00038,2]
[406361242,1771798240909,-322.22853395,0.00038,2]
[406361244,1771798240922,-368.26118166,0.00038,2]
[406361247,1771798240934,-457.09848877,0.00038,2]
[406361249,1771798240945,-822.77727979,0.00038,2]
[406361251,1771798240956,-1462.71516406,0.00038,2]
[406361253,1771798240966,-417.51,0.00038,60]
[406361255,1771798240976,-495.85,0.000384,45]
[406361257,1771798240985,-181.5679265,0.0003849,2]
[406361260,1771798240995,-193.24995163,0.00038499,15]
[406361262,1771798241004,-263.65636446,0.00038499,7]
[406361264,1771798241014,-321.75921139,0.00038499,15]
[406361266,1771798241024,-304.61166015,0.00038499,15]
[406361268,1771798241034,-395.83290249,0.00038499,15]
[406361270,1771798241044,-284.10878075,0.00038499,7]
[406361272,1771798241055,-218.26840947,0.00038499,15]
[406361274,1771798241065,-12500.0,0.000385,45]
[406361276,1771798241076,-12500.0,0.00039,45]
[406361279,1771798241088,-166.91380418,0.00039428,4]
[406361281,1771798241099,-12500.0,0.000395,46]
[406361283,1771798241110,-253.48215286,0.00039999,31]
[406361285,1771798241122,-12500.0,0.0004,46]
[406361287,1771798241132,-200.0,0.0004003,47]
[406361289,1771798241142,-782.1941905,0.00040184,2]
[406361291,1771798241151,-12500.0,0.000405,46]
[406361293,1771798241161,-151.0,0.000405,120]
[406361296,1771798241171,-151.0,0.000405,28]
[406361298,1771798241182,-206.269879,0.000405,120]
[406361300,1771798241196,-500.0,0.00040692,30]
[406361302,1771798241206,-864.6947164,0.00040975,2]
[406361304,1771798241216,-1161.48223532,0.00040997,2]
[406361307,1771798241227,-12500.0,0.00041,47]
[406361309,1771798241237,-151.0,0.00041096,120]
[406361311,1771798241247,-480.115782,0.00041096,120]
[406361313,1771798241257,-480.115782,0.00041096,120]
[406361315,1771798241267,-480.115782,0.00041096,120]
[406361317,1771798241278,-480.115782,0.00041096,120]
[406361319,1771798241288,-500.0,0.00041097,2]
[406361321,1771798241298,-500.0,0.00041097,2]
[406361323,1771798241309,-500.0,0.00041097,2]
[406361326,1771798241319,-324.35774064,0.00041097,2]
[406361328,1771798241329,-209.40437684,0.00041097,2]
[406361330,1771798241340,-217.15233878,0.00041097,2]
[406361332,1771798241350,-225.18697532,0.00041097,2]
[406361346,1771798241474,-233.51889341,0.00041097,2]
[406361348,1771798241488,-242.15909246,0.00041097,2]
[406361350,1771798241498,-251.11897888,0.00041097,2]
[406361352,1771798241508,-260.4103811,0.00041097,2]
[406361354,1771798241518,-270.0455652,0.00041097,2]
[406361356,1771798241527,-280.03725112,0.00041097,2]
[406361358,1771798241538,-290.39862941,0.00041097,2]
[406361360,1771798241547,-301.1433787,0.00041097,2]
[406361362,1771798241558,-480.115782,0.00041097,120]
[406361364,1771798241568,-480.115782,0.00041097,120]
[406361366,1771798241578,-480.115782,0.00041097,120]
[406361368,1771798241588,-480.115782,0.00041097,120]
[406361370,1771798241597,-5062.64,0.000411,14]
[406361372,1771798241606,-174.5311149,0.00041198,2]
[406361374,1771798241616,-12500.0,0.000415,47]
[406361376,1771798241625,-151.0,0.000415,120]
[406361378,1771798241635,-151.0,0.000415,120]
[406361380,1771798241644,-1009.96733843,0.00041748,4]
[406361383,1771798241654,-12500.0,0.00042,47]
[406361385,1771798241664,-151.0,0.00042,120]
[406361387,1771798241674,-480.115782,0.00042,120]
[406361389,1771798241684,-480.115782,0.00042,120]
[406361391,1771798241694,-480.115782,0.00042,120]
[406361393,1771798241703,-480.115782,0.00042,120]
[406361395,1771798241712,-192.9394705,0.00042185,2]
[406361397,1771798241722,-12500.0,0.000425,48]
[406361398,1771798241731,-1288.345,0.000425,120]
[406361401,1771798241741,-475.0,0.000425,120]
[406361402,1771798241750,-475.0,0.000425,120]
[406361405,1771798241760,-475.0,0.000425,120]
[406361407,1771798241770,-475.0,0.000425,120]
[406361409,1771798241780,-475.0,0.000425,120]
[406361411,1771798241789,-475.0,0.000425,120]
[406361413,1771798241799,-475.0,0.000425,120]
[406361415,1771798241808,-475.0,0.000425,120]
[406361417,1771798241818,-475.0,0.000425,120]
[406361419,1771798241827,-475.0,0.000425,120]
[406361421,1771798241839,-475.0,0.000425,120]
[406361423,1771798241853,-475.0,0.000425,120]
[406361425,1771798241863,-475.0,0.000425,120]
[406361427,1771798241873,-475.0,0.000425,120]
[406361429,1771798241882,-475.0,0.000425,120]
[406361431,1771798241894,-419.52,0.000425,120]
[406361433,1771798241903,-475.0,0.00042525,120]
[406361435,1771798241913,-860.08855604,0.00042695,14]
[406361437,1771798241923,-200.0,0.00042972,55]
[406361439,1771798241933,-12500.0,0.00043,48]
[406361441,1771798241943,-256.474721,0.00043,120]
[406361443,1771798241953,-480.115782,0.00043,120]
[406361445,1771798241962,-480.115782,0.00043,120]
[406361447,1771798241971,-480.115782,0.00043,120]
[406361449,1771798241981,-480.115782,0.00043,120]
[406361451,1771798241991,-1161.4822353,0.00043023,2]
[406361453,1771798242000,-12500.0,0.000435,48]
[406361455,1771798242009,-2500.0,0.00044,120]
[406361458,1771798242020,-12500.0,0.00044,49]
[406361460,1771798242031,-480.115782,0.00044,120]
[406361461,1771798242041,-480.115782,0.00044,120]
[406361464,1771798242051,-480.115782,0.00044,120]
[406361465,1771798242060,-480.115779,0.00044,120]
[406361467,1771798242069,-1570.17711222,0.00044472,14]
[406361469,1771798242079,-11368.01,0.000445,14]
[406361471,1771798242091,-12500.0,0.000445,49]
[406361474,1771798242100,-744.00654836,0.0004499,3]
[406361475,1771798242110,-12500.0,0.00045,50]
[406361477,1771798242119,-1161.4822353,0.00045049,2]
[406361479,1771798242129,-190.98054176,0.00045176,2]
[406361482,1771798242139,-12500.0,0.000455,50]
[406361484,1771798242148,-273.26,0.00045637,2]
[406361486,1771798242158,-208.76,0.00045717,60]
[406361488,1771798242168,-500.0,0.00045743,60]
[406361490,1771798242177,-293.09,0.00045914,66]
[406361492,1771798242186,-500.0,0.00045968,60]
[406361494,1771798242196,-12500.0,0.00046,50]
[406361496,1771798242205,-1671.61833437,0.00046248,14]
[406361498,1771798242215,-12500.0,0.000465,51]
[406361500,1771798242224,-5062.64,0.000465,14]
[406361501,1771798242234,-11254.25,0.00046575,120]
[406361502,1771798242244,-12500.0,0.00047,51]
[406361503,1771798242253,-1161.4822353,0.00047074,2]
[406361504,1771798242262,-168.0,0.00047394,2]
[406361505,1771798242272,-795.11739627,0.0004744,60]
[406361506,1771798242282,-12500.0,0.000475,51]
[406361507,1771798242291,-190.98054176,0.00047527,2]
[406361508,1771798242300,-168.0,0.00047806,2]
[406361509,1771798242311,-402.0,0.00047807,16]
[406361510,1771798242320,-392.0,0.00047807,16]
[406361511,1771798242329,-400.0,0.00047807,16]
[406361512,1771798242338,-168.0,0.00047877,2]
[406361513,1771798242349,-12500.0,0.00048,52]
[406361514,1771798242358,-586.64428378,0.00048,120]
[406361515,1771798242367,-1705.43207514,0.00048024,14]
[406361516,1771798242376,-402.0,0.00048127,16]
[406361517,1771798242385,-2000.0,0.000483,21]
[406361518,1771798242395,-151.0,0.000484,23]
[406361519,1771798242405,-12500.0,0.000485,52]
[406361520,1771798242415,-168.0,0.00048598,2]
[406361521,1771798242426,-527.28,0.00048598,120]
[406361522,1771798242435,-475.0,0.00048863,120]
[406361523,1771798242445,-104310.37738496,0.00048891,2]
[406361524,1771798242456,-4953.92100212,0.00048891,2]
[406361525,1771798242467,-1196.28686359,0.00048913,10]
[406361526,1771798242477,-20221.01643244,0.0004899,2]
[406361527,1771798242486,-159.81,0.00049,14]
[406361528,1771798242496,-12500.0,0.00049,52]
[406361529,1771798242509,-1161.4822353,0.000491,2]
[406361530,1771798242520,-168.0,0.00049145,2]
[406361531,1771798242530,-168.0,0.00049153,2]
[406361532,1771798242539,-13941.2657887,0.000492,30]
[406361533,1771798242550,-151.0,0.000492,21]
[406361534,1771798242560,-12047.91221775,0.0004929,2]
[406361535,1771798242569,-11368.01,0.000493,14]
[406361536,1771798242579,-527.28,0.00049325,120]
[406361537,1771798242588,-158972.16982321,0.00049385,2]
[406361549,1771798243553,-8748.86749482,0.00049385,2]
[406361550,1771798243565,-2144.21378591,0.00049385,2]
[406361565,1771798246359,-176.14,0.00041096,120]
[406361566,1771798246370,-336.94,0.00041096,120]
[406361567,1771798246380,-176.14,0.00043151,120]
[406361568,1771798246390,-336.94,0.00043151,120]
[406361569,1771798246399,-5160.0542133,0.00049385,2]
[406361570,1771798318143,245.29899437,0.00029625,2]
[406361626,1771799241137,-150.0,0.00025547,2]
[406361627,1771799241158,-333.70285495,0.0002589,2]
[406361628,1771799251198,-503.29714505,0.0002589,2]
[406361629,1771799251224,-184.35828612,0.00027547,2]
[406361630,1771799251246,-146.58483707,0.00029619,2]
[406361633,1771799367077,-2149.48902345,0.000176,2]
[406361634,1771799367097,-300.0,0.00024999,2]
[406361635,1771799367116,-10982.24445245,0.00025,2]
[406361636,1771799367135,-160.35717755,0.00025,2]
[406361637,1771799367154,-2449.75856048,0.000256,2]
[406361638,1771799367172,-274.43075317,0.00026,2]
[406361639,1771799368227,-236.33686521,0.0002962,2]
[406361858,1771799438513,-6977.39313479,0.0002962,2]
[406361859,1771799438523,-470.0,0.0003,30]
[406361860,1771799438533,-54212.57440282,0.0003,30]
[406361861,1771799438545,-388.8,0.0003,30]
[406361895,1771799440835,-445.32379369,0.0003,30]
[406362181,1771799446390,-345.02524682,0.00029593,2]
[406362182,1771799446400,-29191.1733636,0.0003,30]
[406362183,1771799446410,-3560.59241006,0.0003,60]
[406362184,1771799446419,-2221.18808241,0.00030144,120]
[406362185,1771799550604,500.0,0.00027178,7]
[406362187,1771800390470,9148.25579533,0.00012,2]
[406362188,1771800429823,10000.0,0.00011,2]
[406362189,1771800430129,-851.74420467,0.00012,2]
[406362190,1771800430159,-150.0,0.00027397,5]
[406362191,1771800430179,-238.66113322,0.00027945,5]
[406362192,1771800430199,-150.0,0.00028,5]
[406362193,1771800430219,-250.0,0.00028548,5]
[406362194,1771800430238,-350.0,0.00029096,5]
[406362195,1771800430259,-157.93204465,0.00029829,7]
[406362196,1771800449081,-865.0,0.00029998,2]
[406362197,1771800449103,-300.0,0.00029998,2]
[406362198,1771800449124,-274.51684927,0.00029999,2]
[406362200,1771800549149,-235.53992356,0.00029899,2]
[406362201,1771800557091,-3327.16655436,0.00029899,2]
[406362202,1771800557111,-300.0,0.00029998,2]
[406362203,1771800557132,-225.48315073,0.00029999,2]
[406362204,1771800557152,-500.0,0.00029999,2]
[406362205,1771800557171,-500.0,0.00029999,10]
[406362206,1771800557192,-508.17256698,0.00029999,10]
[406362207,1771800557212,-500.0,0.00030143,15]
[406362208,1771800557232,-500.0,0.00030143,2]
[406362209,1771800557253,-6105.81563386,0.00030144,120]
[406362226,1771800631547,-269.08724583,0.00030143,2]
[406362761,1771800645542,-130.91275417,0.00030143,2]
[406362762,1771800645553,-359.10957598,0.00030144,120]
[406362763,1771800645563,-3050.47864945,0.00030144,120]
[406362764,1771800645634,-1215.73004192,0.00030144,120]
[406362767,1771801319757,-726.33207259,0.00017279,11]
[406362768,1771801319770,-390.88466708,0.00017279,11]
[406362769,1771801319779,-164.67,0.000176,2]
[406362770,1771801319789,-291.63828776,0.00017627,2]
[406362771,1771801319799,-270.02378483,0.00017627,2]
[406362773,1771801630115,-267.22926315,0.00013673,2]
[406362774,1771801630137,-105.70148536,0.00013727,2]
[406362775,1771801632091,-80.68966786,0.00013727,2]
[406362776,1771801632112,-186.20494827,0.00015276,2]
[406362777,1771801632133,-186.20494827,0.00016689,2]
[406362778,1771801632154,-408.97621517,0.00017627,2]
[406362779,1771801632175,-227.54667019,0.000177,2]
[406362780,1771801632195,-211.3,0.000178,2]
[406362781,1771801632218,-151.0381072,0.00017808,2]
[406362782,1771801632238,-300.0,0.00017808,2]
[406362783,1771801632258,-172.88,0.000184,2]
[406362784,1771801632281,-150.0,0.00024658,2]
[406362785,1771801632300,-250.0,0.00025205,2]
[406362786,1771801632321,-764.904916,0.00025394,2]
[406362787,1771801632342,-461.28404826,0.00025753,2]
[406362788,1771801632361,-831.19835803,0.00026323,2]
[406362789,1771801632380,-212.063219,0.00026323,2]
[406362790,1771801632400,-551.576814,0.00027408,120]
[406362791,1771801632420,-194.090583,0.00029347,2]
[406362792,1771801632441,-300.0,0.0002994,2]
[406362793,1771801632462,-806.0,0.00029941,2]
[406362794,1771801632481,-876.8481431,0.00029942,2]
[406362795,1771801632501,-7698.7773804,0.00029942,2]
[406362796,1771801632521,-241.1600667,0.00029942,2]
[406362797,1771801632541,-500.0,0.00030143,15]
[406362798,1771801632561,-500.0,0.00030143,2]
[406362799,1771801632583,-500.0,0.00030143,2]
[406362800,1771801632603,-1885.66367007,0.00030144,120]
[406362839,1771801837914,-150.0,0.0002589,2]
[406362840,1771801837924,-837.0,0.0002589,2]
[406362841,1771801837934,-177.0,0.0002789,2]
[406362842,1771801837944,-300.0,0.00028331,2]
[406362843,1771801837953,-181.5679265,0.00028332,2]
[406362844,1771801837963,-3763.2515147,0.00028332,2]
[406362845,1771801837972,-500.0,0.00029074,7]
[406362846,1771801837981,-150.0,0.00029982,2]
[406362847,1771801837991,-500.0,0.00030143,2]
[406362848,1771801838004,-6559.61765415,0.00030144,120]
[406362849,1771801838017,-150.0,0.0003056,2]
[406362850,1771801838028,-194.090583,0.00030583,2]
[406362851,1771801838041,-1000.0,0.00031233,5]
[406362852,1771801838053,-194.090583,0.00031818,2]
[406362853,1771801838065,-215.99366273,0.00031987,2]
[406362854,1771801838078,-500.0,0.00031995,2]
[406362855,1771801838089,-500.0,0.00031998,2]
[406362856,1771801838101,-500.0,0.00031998,2]
[406362857,1771801838112,-272.36550783,0.00031998,2]
[406362858,1771801838122,-500.0,0.00031998,2]
[406362859,1771801838133,-500.0,0.00031998,2]
[406362860,1771801838147,-500.0,0.00031998,2]
[406362861,1771801838159,-500.0,0.00031998,2]
[406362862,1771801838170,-500.0,0.00031998,2]
[406362863,1771801838183,-500.0,0.00031998,2]
[406362864,1771801838194,-500.0,0.00031998,2]
[406362865,1771801838206,-584.34394332,0.00031998,2]
[406362866,1771801838217,-500.0,0.00031998,2]
[406362867,1771801838228,-537.33544822,0.00031998,2]
[406362868,1771801838240,-555.20560599,0.00031998,2]
[406362869,1771801838251,-500.0,0.00031998,2]
[406362870,1771801838262,-500.0,0.00031998,2]
[406362871,1771801838273,-500.0,0.00031998,2]
[406362872,1771801838285,-500.0,0.00031998,2]